fUSD/lending_fUSD_20260426
["ID","MTS","AMOUNT","RATE_DAILY","PERIOD"]
[421178752,1777212643708,-1000.0,0.00019121,2]
[421178753,1777212643718,-1000.0,0.00019121,2]
[421178754,1777212643728,-500.0,0.00019178,2]
[421178755,1777212643738,-500.0,0.00019178,2]
[421178756,1777212643747,-500.0,0.00019178,2]
[421178757,1777212643757,-500.0,0.00019178,2]
[421178758,1777212643767,-500.0,0.00019178,2]
[421178759,1777212643777,-272.439838,0.00019275,7]
[421178760,1777212643786,-1183.28737762,0.000193,2]
[421178761,1777212643795,-950.0,0.00019452,2]
[421178762,1777212643805,-1487.48,0.00019471,30]
[421178763,1777212643814,-1183.28737762,0.000195,2]
[421178764,1777212643824,-1266.0,0.00019586,2]
[421178765,1777212643833,-817.324,0.00019586,2]
[421178766,1777212643843,-416.97,0.00019586,2]
[421178767,1777212643852,-195.542803,0.000196,2]
[421178768,1777212643862,-281.445171,0.000196,7]
[421178769,1777212643871,-623.0,0.00019642,2]
[421178770,1777212643882,-1048.0,0.00019642,2]
[421178771,1777212643891,-1500.0,0.00019668,2]
[421178772,1777212643901,-1500.0,0.00019668,2]
[421178773,1777212643910,-1500.0,0.00019668,2]
[421178774,1777212643920,-1500.0,0.00019668,2]
[421178775,1777212643930,-1500.0,0.00019668,2]
[421178776,1777212643940,-1500.0,0.00019668,2]
[421178777,1777212643950,-1500.0,0.00019668,2]
[421178778,1777212643959,-1500.0,0.00019668,2]
[421178779,1777212643970,-1500.0,0.00019668,2]
[421178780,1777212643979,-1500.0,0.00019668,2]
[421178781,1777212643989,-1500.0,0.00019668,2]
[421178782,1777212644000,-1500.0,0.00019668,2]
[421178783,1777212644010,-1183.28737762,0.000197,2]
[421178784,1777212644019,-160.0,0.0002,30]
[421178785,1777212644029,-429.0,0.0002,2]
[421178786,1777212644039,-199.0,0.0002,2]
[421178787,1777212644049,-516.0,0.0002,2]
[421178788,1777212644058,-727.0,0.0002,2]
[421178789,1777212644068,-779.0,0.0002,2]
[421178790,1777212644079,-9899.95,0.0002,30]
[421178791,1777212644089,-270.0,0.0002,2]
[421178792,1777212644099,-1000.5,0.0002,2]
[421178793,1777212644108,-231.0,0.0002,2]
[421178794,1777212644118,-953.0,0.0002,2]
[421178795,1777212644128,-1050.0,0.0002,2]
[421178796,1777212644138,-434.0,0.0002,2]
[421178797,1777212644148,-375.0,0.0002,2]
[421178798,1777212644158,-285.0,0.0002,2]
[421178800,1777212644167,-1667.5,0.00020216,2]
[421178801,1777212644177,-1239.34028815,0.00020216,2]
[421178803,1777212644187,-1746.8200165,0.00020216,2]
[421178804,1777212644196,-1610.65207401,0.00020216,2]
[421178805,1777212644206,-2000.0,0.00020216,2]
[421178806,1777212644216,-2000.0,0.00020216,2]
[421178807,1777212644226,-2001.03810188,0.00020216,2]
[421178808,1777212644235,-2000.0,0.00020216,2]
[421178809,1777212644244,-2000.0,0.00020216,2]
[421178810,1777212644254,-2000.0,0.00020216,2]
[421178811,1777212644263,-213.46591303,0.00020216,2]
[421178812,1777212644274,-2002.54395184,0.00020216,2]
[421178813,1777212644283,-2002.78481339,0.00020216,2]
[421178814,1777212644292,-454.01,0.00020331,2]
[421178815,1777212644302,-453.67,0.00020331,2]
[421178816,1777212644312,-1699.98,0.00020341,30]
[421178817,1777212644321,-453.67,0.00020433,2]
[421178818,1777212644331,-150.0,0.00020452,2]
[421178819,1777212644340,-150.0,0.00020452,2]
[421178820,1777212644350,-150.0,0.00020452,2]
[421178821,1777212644359,-150.0,0.00020452,2]
[421178822,1777212644368,-210.8698419,0.00020452,2]
[421178823,1777212644378,-150.0,0.00020452,2]
[421178824,1777212644388,-150.0,0.00020452,2]
[421178825,1777212644397,-150.0,0.00020452,2]
[421178826,1777212644406,-150.0,0.00020452,2]
[421178827,1777212644416,-454.01,0.00020483,2]
[421178829,1777212644425,-453.67,0.00020534,2]
[421178830,1777212644434,-1058.87360836,0.00020548,2]
[421178831,1777212644444,-400.0,0.00020586,2]
[421178832,1777212644454,-454.01,0.00020636,2]
[421178834,1777212644464,-453.67,0.00020636,2]
[421178836,1777212644473,-500.0,0.00020658,2]
[421178837,1777212644483,-152.0,0.00020681,7]
[421178838,1777212644493,-152.0,0.00020681,7]
[421178839,1777212644503,-152.0,0.00020687,30]
[421178840,1777212644512,-152.0,0.00020687,30]
[421178841,1777212644522,-1398.96,0.00020699,2]
[421178842,1777212644532,-152.0,0.00020702,7]
[421178843,1777212644541,-152.0,0.00020702,7]
[421178844,1777212644551,-152.0,0.00020708,30]
[421178845,1777212644560,-152.0,0.00020708,30]
[421178846,1777212644570,-453.67,0.00020738,2]
[421178847,1777212644579,-1999.770048,0.00020764,2]
[421178848,1777212644590,-1999.770048,0.00020764,2]
[421178849,1777212644599,-1999.770048,0.00020764,2]
[421178850,1777212644609,-1999.770048,0.00020764,2]
[421178851,1777212644619,-500.0,0.00020764,2]
[421178852,1777212644630,-1994.43972904,0.00020764,2]
[421178853,1777212644639,-1311.69466453,0.00020764,2]
[421178854,1777212644649,-1694.98365314,0.00020764,2]
[421178855,1777212644659,-454.01,0.00020789,2]
[421178856,1777212644668,-1000.0,0.00020813,7]
[421178857,1777212644678,-330.9,0.00020831,2]
[421178858,1777212644688,-453.67,0.0002084,2]
[421178859,1777212644698,-200.0,0.000209,2]
[421178860,1777212644708,-453.67,0.00020942,2]
[421178861,1777212644717,-450.0,0.00021,2]
[421178862,1777212644727,-429.0,0.00021,2]
[421178863,1777212644736,-199.0,0.00021,2]
[421178864,1777212644746,-516.0,0.00021,2]
[421178865,1777212644755,-727.0,0.00021,2]
[421178866,1777212644764,-779.0,0.00021,2]
[421178867,1777212644775,-270.0,0.00021,2]
[421178868,1777212644784,-231.0,0.00021,2]
[421178869,1777212644793,-953.0,0.00021,2]
[421178870,1777212644803,-151.0,0.00021,2]
[421178871,1777212644812,-465.926387,0.00021,2]
[421178872,1777212644822,-465.926387,0.00021,2]
[421178873,1777212644831,-465.926387,0.00021,2]
[421178874,1777212644840,-465.926387,0.00021,2]
[421178875,1777212644850,-434.0,0.00021,2]
[421178876,1777212644859,-375.0,0.00021,2]
[421178877,1777212644869,-285.0,0.00021,2]
[421178878,1777212644879,-453.67,0.00021044,2]
[421178879,1777212644888,-454.01,0.00021095,2]
[421178880,1777212644898,-453.67,0.00021145,2]
[421178881,1777212644908,-1912.48,0.00021211,30]
[421178882,1777212644918,-454.01,0.00021247,2]
[421178883,1777212644927,-453.73953166,0.00021247,2]
[421178884,1777212644938,-500.0,0.0002126,2]
[421178885,1777212644947,-160.0,0.000213,15]
[421178886,1777212644957,-500.0,0.00021344,2]
[421178887,1777212644968,-1385.16,0.00021344,2]
[421178888,1777212644978,-576.28,0.00021344,2]
[421178889,1777212644988,-1610.16,0.00021344,2]
[421178890,1777212644998,-789.0,0.00021344,2]
[421178891,1777212645007,-500.0,0.00021344,2]
[421178892,1777212645016,-1000.5,0.0002137,2]
[421178893,1777212645026,-1667.5,0.00021586,2]
[421178894,1777212645036,-152.0,0.0002186,7]
[421178895,1777212645045,-152.0,0.0002186,7]
[421178896,1777212645055,-152.0,0.0002186,7]
[421178897,1777212645065,-152.0,0.00021866,30]
[421178898,1777212645075,-152.0,0.00021866,30]
[421178899,1777212645084,-152.0,0.00021882,7]
[421178900,1777212645094,-152.0,0.00021882,7]
[421178901,1777212645104,-152.0,0.00021882,7]
[421178902,1777212645114,-152.0,0.00021888,30]
[421178903,1777212645124,-152.0,0.00021888,30]
[421178904,1777212645133,-150.0,0.00021918,2]
[421178905,1777212645143,-150.0,0.00021918,2]
[421178906,1777212645154,-150.0,0.00021918,2]
[421178907,1777212645165,-150.0,0.00021918,2]
[421178908,1777212645174,-150.0,0.00021918,2]
[421178909,1777212645184,-150.0,0.00021918,2]
[421178910,1777212645194,-150.0,0.00021918,2]
[421178911,1777212645204,-150.0,0.00021918,2]
[421178912,1777212645214,-285.05786651,0.00021918,2]
[421178913,1777212645224,-150.0,0.00021918,2]
[421178914,1777212645233,-150.0,0.00021918,2]
[421178915,1777212645243,-150.0,0.00021918,2]
[421178916,1777212645253,-150.0,0.00021918,2]
[421178917,1777212645262,-150.0,0.00021918,2]
[421178918,1777212645272,-150.0,0.00021918,2]
[421178919,1777212645281,-150.0,0.00021918,2]
[421178920,1777212645291,-150.0,0.00021918,2]
[421178921,1777212645300,-150.0,0.00021918,2]
[421178922,1777212645310,-150.0,0.00021918,2]
[421178923,1777212645320,-150.0,0.00021918,2]
[421178924,1777212645329,-150.0,0.00021918,2]
[421178925,1777212645339,-150.0,0.00021918,2]
[421178926,1777212645348,-150.0,0.00021918,2]
[421178927,1777212645358,-150.0,0.00021918,2]
[421178928,1777212645368,-150.0,0.00021918,2]
[421178929,1777212645378,-232.28125,0.00021918,2]
[421178930,1777212645387,-500.0,0.00021918,2]
[421178931,1777212645396,-500.0,0.00021918,2]
[421178932,1777212645405,-500.0,0.00021918,2]
[421178933,1777212645415,-503.45930392,0.00021973,2]
[421178934,1777212645424,-500.18905296,0.00021973,2]
[421178935,1777212645434,-150.0,0.00021973,2]
[421178936,1777212645444,-150.0,0.00021973,2]
[421178937,1777212645453,-384.423926,0.00021986,2]
[421178938,1777212645463,-384.423926,0.00021986,2]
[421178939,1777212645472,-384.423926,0.00021986,2]
[421178940,1777212645481,-384.423926,0.00021986,2]
[421178941,1777212645492,-33093.9311,0.00021986,2]
[421178942,1777212645502,-2000.0,0.00021986,2]
[421178943,1777212645513,-429.0,0.00022,2]
[421178944,1777212645523,-199.0,0.00022,2]
[421178945,1777212645534,-516.0,0.00022,2]
[421178946,1777212645545,-727.0,0.00022,2]
[421178947,1777212645554,-779.0,0.00022,2]
[421178948,1777212645564,-276.82,0.00022,30]
[421178949,1777212645575,-270.0,0.00022,2]
[421178950,1777212645584,-231.0,0.00022,2]
[421178951,1777212645594,-23195.29,0.00022,7]
[421178952,1777212645603,-162.25551732,0.00022,7]
[421178953,1777212645613,-953.0,0.00022,2]
[421178954,1777212645622,-434.0,0.00022,2]
[421178955,1777212645633,-375.0,0.00022,2]
[421178956,1777212645643,-285.0,0.00022,2]
[421178957,1777212645652,-2124.97,0.00022081,30]
[421178958,1777212645663,-500.0,0.00022084,2]
[421178959,1777212645672,-500.0,0.00022084,2]
[421178960,1777212645682,-500.0,0.00022084,2]
[421178961,1777212645692,-500.0,0.00022084,2]
[421178962,1777212645702,-6993.43919328,0.00022172,2]
[421178963,1777212645711,-284.53137076,0.00022206,2]
[421178964,1777212645721,-210.81,0.00022259,2]
[421178965,1777212645732,-242.15,0.00022379,2]
[421178966,1777212645741,-200.0,0.00022443,2]
[421178967,1777212645754,-623.58710448,0.00022443,2]
[421178968,1777212645763,-181.08010149,0.00022443,2]
[421178969,1777212645772,-578.20924308,0.00022443,2]
[421178970,1777212645782,-1235.18214925,0.00022443,2]
[421178971,1777212645794,-151.0,0.00022443,2]
[421178972,1777212645805,-187.78006525,0.00022443,2]
[421178973,1777212645814,-151.12206715,0.00022443,2]
[421178974,1777212645824,-174.61919141,0.00022443,2]
[421178975,1777212645833,-279.9045709,0.00022443,2]
[421178976,1777212645843,-187.78006523,0.00022443,2]
[421178977,1777212645853,-339.01,0.00022466,2]
[421178978,1777212645863,-284.3,0.00022466,2]
[421178979,1777212645872,-150.0,0.00022488,2]
[421178980,1777212645882,-150.18029948,0.00022488,2]
[421178981,1777212645891,-150.0,0.00022521,2]
[421178982,1777212645901,-250.0,0.00022521,2]
[421178983,1777212645910,-416.0,0.00022586,2]
[421178984,1777212645919,-530.244,0.00022642,2]
[421178985,1777212645929,-1048.0,0.00022642,2]
[421178986,1777212645939,-232.28,0.00022857,2]
[421178987,1777212645948,-160.0,0.000229,7]
[421178988,1777212645958,-200.0,0.000229,2]
[421178989,1777212645967,-900.0,0.000229,8]
[421178990,1777212645977,-341.420321,0.00022922,2]
[421178991,1777212645987,-341.420321,0.00022922,2]
[421178992,1777212645996,-341.420321,0.00022922,2]
[421178993,1777212646006,-341.420321,0.00022922,2]
[421178994,1777212646016,-200.0,0.00022991,2]
[421178995,1777212646026,-187.78006525,0.00022991,2]
[421178996,1777212646036,-1280.88388878,0.00022991,2]
[421178997,1777212646047,-500.0,0.00023,2]
[421178998,1777212646056,-429.0,0.00023,2]
[421178999,1777212646067,-199.0,0.00023,2]
[421179000,1777212646076,-516.0,0.00023,2]
[421179001,1777212646086,-727.0,0.00023,2]
[421179002,1777212646095,-1008.48188069,0.00023,2]
[421179003,1777212646105,-779.0,0.00023,2]
[421179004,1777212646115,-270.0,0.00023,2]
[421179005,1777212646496,-1883.24,0.00023,7]
[421179006,1777212646507,-231.0,0.00023,2]
[421179007,1777212646517,-953.0,0.00023,2]
[421179008,1777212646527,-434.0,0.00023,2]
[421179009,1777212646536,-375.0,0.00023,2]
[421179010,1777212646546,-285.0,0.00023,2]
[421179011,1777212646556,-1264.584209,0.00023,2]
[421179012,1777212646567,-1264.584209,0.00023,2]
[421179013,1777212646577,-1264.584209,0.00023,2]
[421179014,1777212646588,-1264.584209,0.00023,2]
[421179015,1777212646598,-330.9,0.00023028,2]
[421179016,1777212646608,-150.0,0.00023068,2]
[421179017,1777212646619,-350.0,0.00023068,2]
[421179018,1777212646628,-195.2057667,0.00023094,5]
[421179019,1777212646639,-219.86058489,0.00023095,2]
[421179020,1777212646651,-23195.29,0.000231,7]
[421179021,1777212646660,-151.0,0.000231,2]
[421179022,1777212646671,-151.0,0.000231,2]
[421179023,1777212646680,-151.0,0.000231,2]
[421179024,1777212646690,-151.0,0.000231,2]
[421179025,1777212646700,-557.280886,0.000231,2]
[421179026,1777212646710,-557.280886,0.000231,2]
[421179027,1777212646720,-557.280886,0.000231,2]
[421179028,1777212646729,-557.280886,0.000231,2]
[421179029,1777212646741,-150.0,0.00023195,2]
[421179030,1777212646752,-539.0,0.00023507,2]
[421179031,1777212646762,-200.0,0.00023539,2]
[421179032,1777212646773,-215.58068715,0.00023539,2]
[421179033,1777212646783,-1328.27659266,0.00023539,2]
[421179034,1777212646793,-159.0,0.00023599,5]
[421179035,1777212646804,-150.0,0.00023616,2]
[421179036,1777212646820,-450.45717388,0.00023616,2]
[421179037,1777212646831,-162.0,0.00023679,3]
[421179038,1777212646842,-500.0,0.00023761,2]
[421179039,1777212646852,-500.0,0.00023761,2]
[421179040,1777212646862,-500.0,0.00023761,2]
[421179041,1777212646873,-535.58,0.00023761,2]
[421179042,1777212646884,-676.55,0.00023761,2]
[421179043,1777212646894,-881.99,0.00023761,2]
[421179044,1777212646904,-500.0,0.00023761,2]
[421179045,1777212646915,-500.0,0.00023761,2]
[421179046,1777212646924,-500.0,0.00023761,2]
[421179047,1777212646935,-521.77,0.00023761,2]
[421179048,1777212646945,-500.0,0.00023761,2]
[421179049,1777212646956,-500.0,0.00023761,2]
[421179050,1777212646967,-500.0,0.00023761,2]
[421179051,1777212646977,-500.0,0.00023761,2]
[421179052,1777212646988,-500.0,0.00023761,2]
[421179053,1777212646998,-500.0,0.00023761,2]
[421179054,1777212647009,-500.0,0.00023761,2]
[421179055,1777212647019,-500.0,0.00023761,2]
[421179056,1777212647030,-845.06,0.00023761,2]
[421179057,1777212647042,-500.0,0.00023761,2]
[421179058,1777212647052,-544.214046,0.00023761,2]
[421179059,1777212647063,-544.214046,0.00023761,2]
[421179060,1777212647072,-500.0,0.00023761,2]
[421179061,1777212647083,-544.214046,0.00023761,2]
[421179062,1777212647094,-544.214046,0.00023761,2]
[421179063,1777212647104,-150.0,0.00023768,2]
[421179064,1777212647115,-232.28,0.00023796,2]
[421179065,1777212647125,-2065.5176,0.000239,2]
[421179066,1777212647135,-1883.24,0.000239,7]
[421179067,1777212647146,-429.0,0.00024,2]
[421179068,1777212647156,-199.0,0.00024,2]
[421179069,1777212647167,-516.0,0.00024,2]
[421179070,1777212647177,-727.0,0.00024,2]
[421179071,1777212647188,-526.0,0.00024,5]
[421179072,1777212647199,-779.0,0.00024,2]
[421179073,1777212647215,-270.0,0.00024,2]
[421179074,1777212647225,-231.0,0.00024,2]
[421179075,1777212647235,-953.0,0.00024,2]
[421179076,1777212647245,-434.0,0.00024,2]
[421179077,1777212647255,-375.0,0.00024,2]
[421179078,1777212647265,-285.0,0.00024,2]
[421179079,1777212647275,-162.25551732,0.00024,7]
[421179080,1777212647285,-1377.42282659,0.00024087,2]
[421179081,1777212647296,-23195.29,0.000241,7]
[421179082,1777212647306,-296.63,0.0002411,2]
[421179083,1777212647317,-248.76,0.0002411,2]
[421179084,1777212647328,-150.0,0.00024164,2]
[421179085,1777212647341,-152.0,0.00024198,7]
[421179086,1777212647353,-152.0,0.00024198,7]
[421179087,1777212647364,-152.0,0.00024198,7]
[421179088,1777212647376,-152.0,0.00024205,30]
[421179089,1777212647386,-152.0,0.00024205,30]
[421179090,1777212647397,-152.0,0.00024222,7]
[421179091,1777212647409,-152.0,0.00024222,7]
[421179092,1777212647421,-152.0,0.00024222,7]
[421179093,1777212647432,-152.0,0.00024229,30]
[421179094,1777212647443,-152.0,0.00024229,30]
[421179095,1777212647453,-150.0,0.0002455,2]
[421179096,1777212647464,-1248.5,0.0002463,2]
[421179097,1777212647474,-2051.0,0.0002463,2]
[421179098,1777212647484,-2425.5,0.0002463,2]
[421179099,1777212647494,-1691.5,0.0002463,2]
[421179100,1777212647504,-1428.38747117,0.00024635,2]
[421179101,1777212647516,-1577.0,0.00024639,3]
[421179102,1777212647528,-1577.0,0.00024639,3]
[421179103,1777212647539,-150.0,0.00024658,2]
[421179104,1777212647549,-500.0,0.00024658,2]
[421179105,1777212647560,-500.0,0.00024658,2]
[421179106,1777212647570,-500.0,0.00024658,2]
[421179107,1777212647580,-500.0,0.00024658,2]
[421179108,1777212647591,-500.0,0.00024658,2]
[421179109,1777212647606,-500.0,0.00024658,2]
[421179110,1777212647617,-500.0,0.00024658,2]
[421179111,1777212647628,-500.0,0.00024658,2]
[421179112,1777212647639,-500.0,0.00024658,2]
[421179113,1777212647650,-466.70549237,0.00024658,2]
[421179114,1777212647661,-150.0,0.00024658,2]
[421179115,1777212647671,-411.48,0.000247,7]
[421179116,1777212647682,-174.79574838,0.00024712,2]
[421179117,1777212647693,-341.0,0.00024731,2]
[421179118,1777212647703,-232.28,0.00024736,2]
[421179119,1777212647713,-332.0,0.00024787,2]
[421179120,1777212647723,-200.0,0.000248,10]
[421179121,1777212647734,-500.0,0.00024899,2]
[421179122,1777212647745,-212.03,0.000249,2]
[421179123,1777212647755,-300.0,0.000249,10]
[421179124,1777212647766,-1999.770048,0.000249,2]
[421179125,1777212647776,-1999.770048,0.000249,2]
[421179126,1777212647787,-1999.770048,0.000249,2]
[421179127,1777212647797,-1999.770048,0.000249,2]
[421179128,1777212647809,-151.0,0.000249,2]
[421179129,1777212647819,-465.926387,0.000249,2]
[421179130,1777212647832,-465.926387,0.000249,2]
[421179131,1777212647843,-465.926387,0.000249,2]
[421179132,1777212647854,-465.926387,0.000249,2]
[421179133,1777212647864,-200.0,0.000249,2]
[421179134,1777212647874,-332.0,0.00024936,2]
[421179135,1777212647884,-150.0,0.00024941,2]
[421179136,1777212647894,-150.0,0.00024941,2]
[421179137,1777212647904,-150.0,0.00024941,2]
[421179138,1777212647914,-150.0,0.00024941,2]
[421179139,1777212647924,-150.0,0.00024941,2]
[421179140,1777212647935,-150.0,0.00024941,2]
[421179141,1777212647945,-288.0,0.00024941,2]
[421179142,1777212647955,-335.0,0.00024973,2]
[421179143,1777212647966,-335.0,0.00024998,2]
[421179144,1777212647977,-550.0,0.00025,2]
[421179145,1777212647988,-431.30338231,0.00025,2]
[421179146,1777212648004,-4828.92047414,0.00025,3]
[421179148,1777212648015,-208.0,0.00025,2]
[421179149,1777212648025,-533.0,0.00025,2]
[421179150,1777212648035,-744.0,0.00025,2]
[421179151,1777212648045,-787.93235307,0.00025,2]
[421179152,1777212648055,-271.0,0.00025,2]
[421179153,1777212648065,-1883.24,0.00025,7]
[421179154,1777212648076,-235.0,0.00025,2]
[421179155,1777212648086,-965.0,0.00025,2]
[421179156,1777212648098,-442.0,0.00025,2]
[421179157,1777212648108,-375.0,0.00025,2]
[421179158,1777212648119,-295.0,0.00025,2]
[421179159,1777212648129,-335.0,0.00025031,2]
[421179160,1777212648139,-335.0,0.00025035,2]
[421179161,1777212648151,-335.0,0.00025044,2]
[421179162,1777212648161,-335.0,0.00025085,2]
[421179163,1777212648172,-335.0,0.00025096,2]
[421179164,1777212648183,-304.0,0.0002514,2]
[421179165,1777212648193,-599.60298507,0.00025182,2]
[421179166,1777212648203,-646.65982734,0.00025182,2]
[421179167,1777212648215,-1481.23780761,0.00025183,2]
[421179168,1777212648225,-335.0,0.0002519,2]
[421179169,1777212648237,-250.0,0.00025205,2]
[421179170,1777212648247,-335.0,0.00025218,2]
[421179171,1777212648259,-330.9,0.00025224,2]
[421179172,1777212648269,-335.0,0.00025231,2]
[421179173,1777212648279,-335.0,0.0002526,2]
[421179174,1777212648289,-332.6,0.000253,15]
[421179175,1777212648299,-206.95,0.000253,15]
[421179176,1777212648311,-23195.29,0.000253,7]
[421179177,1777212648322,-335.0,0.00025305,2]
[421179178,1777212648332,-335.0,0.00025306,2]
[421179179,1777212648343,-150.0,0.00025338,2]
[421179180,1777212648353,-150.0,0.00025338,2]
[421179181,1777212648363,-150.0,0.00025338,2]
[421179182,1777212648374,-150.0,0.00025338,2]
[421179183,1777212648385,-150.0,0.00025338,2]
[421179184,1777212648396,-150.0,0.00025338,2]
[421179185,1777212648407,-150.0,0.00025338,2]
[421179186,1777212648418,-150.0,0.00025338,2]
[421179187,1777212648428,-224.0,0.00025338,2]
[421179188,1777212648454,-335.0,0.00025362,2]
[421179189,1777212648466,-500.0,0.00025373,2]
[421179190,1777212648477,-165.4117288,0.00025373,2]
[421179191,1777212648488,-500.0,0.00025373,2]
[421179192,1777212648500,-162.3470617,0.00025373,2]
[421179193,1777212648512,-151.0,0.0002538,30]
[421179194,1777212648524,-335.0,0.00025424,2]
[421179195,1777212648535,-266.0,0.00025444,2]
[421179196,1777212648547,-150.0,0.00025444,2]
[421179197,1777212648559,-164.0,0.00025444,2]
[421179198,1777212648572,-335.0,0.00025489,2]
[421179199,1777212648584,-558.28152907,0.0002549,2]
[421179200,1777212648597,-276.82,0.00025492,30]
[421179201,1777212648609,-411.48,0.000255,7]
[421179202,1777212648620,-500.0,0.00025506,2]
[421179203,1777212648633,-500.0,0.00025506,2]
[421179204,1777212648644,-500.0,0.00025506,2]
[421179205,1777212648655,-6993.43919328,0.00025533,2]
[421179206,1777212648668,-500.0,0.00025612,2]
[421179207,1777212648681,-500.0,0.00025612,2]
[421179208,1777212648693,-500.0,0.00025612,2]
[421179209,1777212648704,-160.77598926,0.00025612,2]
[421179210,1777212648716,-338.64647554,0.00025612,2]
[421179211,1777212648727,-500.0,0.00025612,2]
[421179212,1777212648739,-1048.0,0.00025642,2]
[421179213,1777212648751,-232.28,0.00025675,2]
[421179214,1777212648762,-1536.04360649,0.00025731,2]
[421179215,1777212648774,-350.0,0.00025753,2]
[421179216,1777212648785,-160.0,0.000258,7]
[421179217,1777212648796,-150.0,0.00025842,2]
[421179218,1777212648808,-150.0,0.00025842,2]
[421179219,1777212648818,-150.0,0.00025842,2]
[421179220,1777212648829,-194.0,0.00025842,2]
[421179221,1777212648840,-1000.0,0.00025921,2]
[421179222,1777212648851,-630.48847923,0.00025921,2]
[421179223,1777212648861,-1577.0,0.00025957,3]
[421179224,1777212648872,-1398.96,0.00025968,2]
[421179225,1777212648883,-1883.24,0.00026,7]
[421179226,1777212648893,-297.0,0.00026,7]
[421179227,1777212648903,-162.25551732,0.00026,7]
[421179228,1777212648914,-1000.0,0.00026054,2]
[421179229,1777212648924,-1000.0,0.00026054,2]
[421179230,1777212648935,-1000.0,0.00026054,2]
[421179231,1777212648946,-500.0,0.00026112,2]
[421179232,1777212648957,-500.0,0.00026112,2]
[421179233,1777212648968,-500.0,0.00026112,2]
[421179234,1777212648979,-535.58,0.00026112,2]
[421179235,1777212648990,-676.55,0.00026112,2]
[421179236,1777212649001,-881.99,0.00026112,2]
[421179237,1777212649012,-500.0,0.00026112,2]
[421179238,1777212649033,-500.0,0.00026112,2]
[421179239,1777212649046,-500.0,0.00026112,2]
[421179240,1777212649058,-521.77,0.00026112,2]
[421179241,1777212649070,-500.0,0.00026112,2]
[421179242,1777212649082,-500.0,0.00026112,2]
[421179243,1777212649094,-500.0,0.00026112,2]
[421179244,1777212649424,-500.0,0.00026112,2]
[421179245,1777212649435,-500.0,0.00026112,2]
[421179246,1777212649444,-500.0,0.00026112,2]
[421179247,1777212649454,-500.0,0.00026112,2]
[421179248,1777212649464,-500.0,0.00026112,2]
[421179249,1777212649474,-845.06,0.00026112,2]
[421179250,1777212649484,-500.0,0.00026112,2]
[421179251,1777212649495,-500.0,0.00026112,2]
[421179252,1777212649505,-500.0,0.00026129,2]
[421179253,1777212649515,-1385.16,0.00026129,2]
[421179254,1777212649525,-576.28,0.00026129,2]
[421179255,1777212649534,-1610.16,0.00026129,2]
[421179256,1777212649549,-789.0,0.00026129,2]
[421179257,1777212649561,-500.0,0.00026129,2]